Cogmind - Beta 16 @@@ ROGUE MODE // 2025.11.21 @ 11:19:23 Player: shapeshifter Result: Destroyed by S-43 Plague with Heavy Machine Gun Performance ------------- Evolutions (6) 3000 Regions Visited (17) 3400 Robots Destroyed (184) 920 Value Destroyed (7372) 7372 Prototype IDs (36) 720 Alien Tech Used (0) 0 Bonus (6087) 6087 TOTAL SCORE: 21499 Bonus ------- High Alert Combat Kills 617 Follower Combat Kills 2470 Network Hubs Disabled 600 Met Zhirov 300 Met Warlord at Base 500 MAIN.C Attacked Warlord 500 Built Enhanced Grunts 300 A7 Reached Mainframe 300 Met R17 at Cetus 500 Cogmind --------- Core Integrity 0/1150 Matter 300/300 Energy 328/350 System Corruption 0% Temperature Cool (5) Movement Treading (132) Location -3/Proximity Caves Parts ------- > --- POWER (2) -------- Fission-Backup Core > --- PROPULSION (5) --- Treaded FC Exoskeleton > --- UTILITY (8) ------ Armored Scrap Engine High-capacity Storage Unit Enhanced Optical Array Experimental Targeting Computer Phase Shifter Thermal Barrier Advanced Remote Shield > --- WEAPON (4) ------- Remote Datajack Plasma Cutter Hyp. Zero Gamma Construct/G > --- INVENTORY (20) --- Experimental Cooling System Improved Coolant Injector Huge Storage Unit Energy Well (350) Experimental Target Analyzer Improved Particle Charger Quantum Capacitor Advanced Point Defense System Ghost Barrier Long-range Tractor Beam Improved Plasma Cutter Peak State ------------ > --- POWER ------------ Fission-Backup Core > --- PROPULSION ------- Treaded FC Exoskeleton > --- UTILITY ---------- Armored Scrap Engine Experimental Cooling System High-capacity Storage Unit Enhanced Optical Array Experimental Targeting Computer Thermal Barrier Advanced Remote Shield > --- WEAPON ----------- Remote Datajack Plasma Cutter Improved Plasma Cutter Hyp. Zero Gamma Construct/G > --- INVENTORY -------- Improved Coolant Injector Huge Storage Unit Energy Well Experimental Target Analyzer Improved Particle Charger Quantum Capacitor Phase Shifter Advanced Point Defense System Ghost Barrier Long-range Tractor Beam [Rating: 118] Favorites ----------- Power Constructs Engine Ion Engine Power Core Constructs Propulsion Constructs Treads Constructs Leg Improved Carbon-fiber Leg Wheel Subdweller Monowheel Utility High-capacity Storage Unit Device Armored Scrap Engine Storage High-capacity Storage Unit Processor Improved Launcher Guidance Computer Protection Improved Medium Armor Plating Weapon Constructs Energy Gun Constructs Energy Cannon Subdweller Beam Cannon Ballistic Gun Enhanced Autogun Ballistic Cannon Improved Light Cannon Launcher Improved Proton Missile Launcher Special Weapon Improved Remote Datajack Piercing Weapon Enhanced Force Lance Special Melee Weapon Improved Datajack Build | -11 -10 -10 -10 -8 -7 -7 -7 -5 -5 -5 -5 -5 -4 -4 -4 -4 -3 ------- Run | Yrd Mat Min Sub Mat Fac Sto Rec Fac Ext Cet Arc Hub Fac Upp Upp War Pro Slots Evolved 12 | . . . . 4 2 . . 4 . . . . 2 . . . . Power 1 | . . . . . . . . 1 . . . . . . . . . Propulsion 3 | . . . . 1 1 . . 1 . . . . . . . . . Utility 6 | . . . . 2 1 . . 1 . . . . 2 . . . . Weapon 2 | . . . . 1 . . . 1 . . . . . . . . . Parts Attached 85 | 7 5 2 11 13 5 11 3 4 6 2 . 1 8 . 1 6 . Power 7 | 1 . . 3 2 . 1 . . . . . . . . . . . Engine 7 | 1 . . 3 2 . 1 . . . . . . . . . . . Core . | . . . . . . . . . . . . . . . . . . Reactor . | . . . . . . . . . . . . . . . . . . Propulsion 14 | 2 . . 4 3 2 3 . . . . . . . . . . . Treads 2 | 2 . . . . . . . . . . . . . . . . . Leg 8 | . . . . 3 2 3 . . . . . . . . . . . Wheel 4 | . . . 4 . . . . . . . . . . . . . . Hover . | . . . . . . . . . . . . . . . . . . Flight . | . . . . . . . . . . . . . . . . . . Utility 32 | 2 3 . 2 3 3 1 2 . 4 1 . 1 4 . 1 5 . Device 13 | 1 . . 1 2 1 . 2 . 2 . . . . . 1 3 . Storage 7 | 1 2 . . . 1 . . . 2 . . . 1 . . . . Processor 6 | . . . . . 1 . . . . . . 1 2 . . 2 . Hackware . | . . . . . . . . . . . . . . . . . . Protection 6 | . 1 . 1 1 . 1 . . . 1 . . 1 . . . . Artifact . | . . . . . . . . . . . . . . . . . . Weapon 32 | 2 2 2 2 5 . 6 1 4 2 1 . . 4 . . 1 . Energy Gun 2 | 2 . . . . . . . . . . . . . . . . . Energy Cannon 2 | . . . 1 . . . . . 1 . . . . . . . . Ballistic Gun 12 | . 1 . . 4 . 4 . . . . . . 3 . . . . Ballistic Cannon 6 | . . 2 1 1 . 1 . 1 . . . . . . . . . Launcher 4 | . 1 . . . . 1 1 . . 1 . . . . . . . Special Weapon 4 | . . . . . . . . 3 . . . . . . . 1 . Impact Weapon . | . . . . . . . . . . . . . . . . . . Slashing Weapon . | . . . . . . . . . . . . . . . . . . Piercing Weapon 1 | . . . . . . . . . . . . . 1 . . . . Special Melee Weapon 1 | . . . . . . . . . 1 . . . . . . . . Unidentified Prototypes 11 | . . . . 2 . 2 1 . . 1 . . 1 . . 4 . Parts Lost 32 | . 1 . 3 . 2 3 . 2 2 . . 1 11 5 2 . . Power 6 | . . . . . . 1 . 1 1 . . . 2 1 . . . Propulsion 6 | . . . 1 . 1 1 . 1 . . . . 1 1 . . . Utility 6 | . 1 . 1 . 1 . . . . . . . . 1 2 . . Weapon 14 | . . . 1 . . 1 . . 1 . . 1 8 2 . . . Highest Loss Streak 3 | . 1 . 2 . 1 2 . 2 1 . . 1 3 3 1 . . To Critical Strikes . | . . . . . . . . . . . . . . . . . . Average Backups 13 | 2 8 9 10 11 12 16 11 18 19 19 20 19 17 14 10 11 10 Power . | . 1 1 1 . . . . . . . . . . 1 . . . Propulsion 1 | 1 1 1 2 3 5 7 3 . . . . . . . . . . Utility 6 | . . 1 1 1 1 . 2 8 12 14 13 12 10 8 7 9 10 Weapon 3 | . 4 4 4 4 4 5 3 8 5 2 5 5 4 2 . . . Tool/Special . | . . . . . . . . . . . . . . . . . . Unused Backups 63 | . 2 . . 3 3 4 11 5 5 5 1 2 9 2 1 2 8 Power 1 | . . . . . . . . . . . . . . . 1 . . Propulsion 11 | . 1 . . . . . 10 . . . . . . . . . . Utility 22 | . . . . 3 . 1 . . 1 3 1 2 3 . . . 8 Weapon 27 | . 1 . . . 2 3 1 4 4 2 . . 6 2 . 2 . Tool/Special 2 | . . . . . 1 . . 1 . . . . . . . . . Average Slot Usage (%) 66 | . 94 100 99 98 90 99 67 42 48 44 43 43 41 43 44 48 63 Engine 5 | . 14 14 14 9 7 7 6 2 . . . . . . 4 2 . Core 1 | . . . . . . . . 1 4 1 . . 2 3 . . 5 Treads 4 | . 28 28 6 . . . . . . . . . 2 . . . 2 Leg 7 | . . . . 24 25 29 11 . 3 5 5 5 1 1 5 3 . Wheel 2 | . . . 21 1 . . 2 4 . . . . . . . . . Device 12 | . 3 . 6 17 18 15 13 10 14 15 17 16 8 5 7 15 21 Storage 7 | . 14 14 14 9 7 7 7 5 5 5 5 5 6 10 7 5 5 Processor 4 | . . . . . . 7 7 5 3 . . 2 7 15 11 10 10 Protection 3 | . 5 14 6 8 7 7 2 . . 1 2 . 2 . . . . Energy Gun 2 | . 16 2 . . . . 1 2 . . . . . . 4 2 5 Ballistic Gun 6 | . 10 2 . 24 23 22 10 . . . . . 4 . . 2 . Ballistic Cannon 3 | . . 23 24 1 . . . 2 2 3 . . . 1 . . . Special Weapon 1 | . . . . . . . . 1 5 . . . . . . 1 10 Peak Build Rating 118 | 7 8 10 19 42 51 57 69 66 92 90 89 93 110 93 77 118 114 Average Rating 58 | 4 7 9 14 38 45 53 52 55 76 79 83 83 90 79 70 93 109 On Entrance 53 | . 7 8 10 18 42 49 57 46 56 76 89 81 74 93 66 69 114 Avg Prop Armor Cover (%) . | . . . . . . . . . . . . . . . . . . Naked Turns . | . . . . . . . . . . . . . . . . . . Heaviest Build 96 | 15 31 36 41 46 68 71 75 58 71 83 75 72 79 71 67 95 96 Greatest Support 189 | 40 40 40 40 56 69 74 74 58 82 69 69 69 189 94 70 116 123 Greatest Overweight (x) 4 | . . . 1 . 1 1 4 1 1 1 1 1 . . . 1 . Average Overweight (x) . | . . . . . . . . . . . . . . . . . . Largest Inventory Capacity 20 | 8 15 15 15 15 20 20 20 20 20 20 20 20 20 20 20 20 20 Average Capacity 18 | 7 12 15 15 15 16 20 20 20 20 20 20 20 20 20 20 20 20 Most Carried 20 | 6 12 11 15 15 19 20 20 20 20 20 20 20 20 16 13 18 12 Average Carried 14 | 3 8 9 12 14 15 19 12 18 19 19 19 19 17 15 11 12 11 Final Capacity 20 | 8 15 15 15 15 20 20 20 20 20 20 20 20 20 20 20 20 20 Final Carried 20 | 4 11 10 15 15 18 20 12 20 19 20 20 20 16 13 11 11 12 Scrap Engine Consumption 212 | . . . . . . . 47 25 40 15 . 7 32 7 3 35 1 Constructs Created 10 | . . . . . . . 3 1 1 . . . 3 . 2 . . Constructs Modified 82 | . . . . . . . 16 8 18 4 . 2 14 2 1 12 5 Class Distribution -------------------- 34% | Mutant 22% | Commander-Construct 17% | Construct 15% | Tank 4% | Commander-Tank 3% | Commander-Mutant Dominant Class ---------------- Mutant | -10/Materials Mutant | -10/Mines Mutant | -10/Subcaves Tank | -8/Materials Tank | -7/Factory Tank | -7/Storage Commander-Construct | -7/Recycling Commander-Construct | -5/Factory Construct | -5/Extension Commander-Construct | -5/Cetus Commander-Construct | -5/Archives Commander-Construct | -5/Hub_04(d) Mutant | -4/Factory Mutant | -4/Upper Caves Mutant | -4/Upper Caves Construct | -4/Warlord Construct | -3/Proximity Caves Resources | -11 -10 -10 -10 -8 -7 -7 -7 -5 -5 -5 -5 -5 -4 -4 -4 -4 -3 ----------- Run | Yrd Mat Min Sub Mat Fac Sto Rec Fac Ext Cet Arc Hub Fac Upp Upp War Pro Matter Collected 5256 | 207 158 106 326 720 557 581 414 388 734 134 . 58 668 43 38 124 . Remotely . | . . . . . . . . . . . . . . . . . . Salvage Created 7939 | 30 275 216 232 906 683 855 582 632 706 420 . 383 1634 343 42 . . Parts 380 | 5 20 23 12 56 32 42 29 28 29 14 . 12 69 8 1 . . Haulers Intercepted 5 | . 1 . . 1 . 1 . . . . . 1 1 . . . . Recyclers Shooed 6 | 1 . . . . . . . . 1 . . . 4 . . . . Parts Field Recycled . | . . . . . . . . . . . . . . . . . . Retrieved Matter . | . . . . . . . . . . . . . . . . . . Parts Self-Destructed 12 | . . . 6 . . . . . . . . . . 6 . . . Prevented . | . . . . . . . . . . . . . . . . . . Parts Restored . | . . . . . . . . . . . . . . . . . . Kills | -11 -10 -10 -10 -8 -7 -7 -7 -5 -5 -5 -5 -5 -4 -4 -4 -4 -3 ------- Run | Yrd Mat Min Sub Mat Fac Sto Rec Fac Ext Cet Arc Hub Fac Upp Upp War Pro Combat Hostiles Destroyed 133 | . 8 8 9 17 12 13 9 11 13 5 . 6 16 5 1 . . Melee 8 | . . . . . . . . . . . . . 4 4 . . . Guns 66 | . 5 6 . 17 12 11 9 . . . . . 5 . 1 . . Cannons 41 | . . 2 8 . . . . 11 13 . . 6 . 1 . . . AOE 11 | . 3 . . . . 2 . . . . . . 6 . . . . Classes Destroyed 20 | 1 4 1 2 2 3 5 1 . 1 . . . . . . . . Worker 11 | . 1 2 . 1 1 . . 2 . . . 1 3 . . . . Builder 9 | . . 2 . . . 3 . . . . . . 4 . . . . Tunneler 5 | 2 . 1 . . . . . 1 1 . . . . . . . . Hauler 5 | . 1 . . 1 . 1 . . . . . 1 1 . . . . Recycler 7 | . . . . . . . 1 1 1 . . . 4 . . . . Mechanic 1 | . . . . . . 1 . . . . . . . . . . . Operator 2 | . . . . . 1 . . . 1 . . . . . . . . Watcher 9 | . . . . 3 . 1 . 1 1 2 . 1 . . . . . Swarmer 25 | . 3 6 . 5 . 2 . 2 2 . . . . 5 . . . Grunt 51 | . 5 2 2 7 9 5 . 4 5 . . 5 7 . . . . Duelist 3 | . . . . . 1 . . 2 . . . . . . . . . Protector 3 | . . . . . . 1 1 . . . . . 1 . . . . Sentry 16 | . . . . 5 1 2 3 1 3 . . 1 . . . . . Demolisher 1 | . . . . . . 1 . . . . . . . . . . . Specialist 1 | . . . . . . 1 . . . . . . . . . . . Hunter 7 | . . . . . . 2 . . 1 . . . 4 . . . . Programmer 9 | . . . . . 1 . 1 2 . . . . 4 . 1 . . Behemoth 2 | . . . . . . . . . 2 . . . . . . . . Cetus Guard 5 | . . . . . . . . . . 5 . . . . . . . Artisan 1 | . . . 1 . . . . . . . . . . . . . . Subdweller 11 | . . . 7 . . . 4 . . . . . . . . . . Thug 1 | . . . . . . . . . 1 . . . . . . . . Best Kill Streak 9 | 2 3 3 3 8 4 9 2 5 3 4 . 4 7 4 1 . . Combat Bots Only 7 | . 3 3 3 7 4 5 2 4 2 3 . 2 4 4 1 . . Max Kills in Single Turn 4 | 1 3 1 1 1 2 2 1 2 1 1 . 1 4 1 1 . . Gunslinging . | . . . . . . . . . . . . . . . . . . Exploded 3 | . 3 . . . . 1 . . . . . . 2 . . . . Melee 1 | . . . . . . . . . . . . . 1 1 . . . Uniques/NPCs Destroyed . | . . . . . . . . . . . . . . . . . . Combat | -11 -10 -10 -10 -8 -7 -7 -7 -5 -5 -5 -5 -5 -4 -4 -4 -4 -3 -------- Run | Yrd Mat Min Sub Mat Fac Sto Rec Fac Ext Cet Arc Hub Fac Upp Upp War Pro Hostile Shots Fired 1327 | . 35 32 36 47 65 109 72 114 107 20 . 51 447 143 47 1 1 Missed 481 | . 8 4 9 19 23 47 20 44 32 8 . 13 190 44 20 . . Hits 846 | . 27 28 27 28 42 62 52 70 75 12 . 38 257 99 27 1 1 Melee 4 | . . . . . 3 . . . . . . 1 . . . . . Projectile 842 | . 27 28 27 28 39 62 52 70 75 12 . 37 257 99 27 1 1 AOE 5 | . . . . . . 1 1 . . . . . 3 . . . . Critical Strikes 34 | . 2 . . . 2 2 . 3 1 2 . 1 18 1 2 . . Actively Blocked 14 | . . . . . . . . . 1 2 . 1 10 . . . . Damage Taken 15105 | . 327 260 548 362 657 848 509 1117 1447 120 . 1059 5302 1930 581 20 18 Core 2365 | . 69 22 102 30 69 95 91 306 180 21 . 215 600 397 150 . 18 Absorbed by Shields 499 | . . . . . . . 28 247 105 114 . . . . . . 5 Ignored by Resistances 383 | . . . 28 16 . . . . 214 86 . 39 . . . . . Regen/Repaired (Parts) 4212 | . . . . . . . . 269 720 234 . 141 1712 241 170 725 . Core Remaining (%) 61 | 100 . . 22 94 . . 63 . . . . 27 . . . . . Volleys Fired 584 | 7 31 23 45 51 36 40 25 72 120 6 . 38 79 4 7 . . Largest 3 | 2 2 2 2 3 3 3 3 1 1 1 . 1 3 1 1 . . Hottest 150 | 100 100 70 113 75 75 86 81 47 42 43 . 42 150 98 67 . . Shots Fired 1014 | 14 60 46 84 153 108 110 69 70 120 6 . 38 126 3 7 . . Gun 646 | 14 58 28 . 153 108 104 67 9 2 . . . 96 . 7 . . Cannon 322 | . . 18 84 . . . . 60 100 . . 38 19 3 . . . Launcher 27 | . 2 . . . . 6 2 . . 6 . . 11 . . . . Special 19 | . . . . . . . . 1 18 . . . . . . . . Kinetic 794 | . 20 32 71 153 108 104 67 69 52 . . 38 80 . . . . Thermal 159 | 14 38 14 13 . . . . . 50 . . . 20 3 7 . . Explosive 8 | . 2 . . . . . 2 . . . . . 4 . . . . Electromagnetic 34 | . . . . . . 6 . . . 6 . . 22 . . . . Robot Hit Streak 24 | 8 8 6 24 10 10 12 14 24 21 . . 6 7 2 3 . . Robot Miss Streak 5 | 1 4 5 2 3 4 5 2 5 3 . . 3 3 1 2 . . Penetration Max 2 | . . . . . . . . 1 1 . . . 2 . . . . Secondary Targets 12 | . 1 . . 4 3 3 . . . . . . 1 . . . . Max Gunslinging Chain 1 | . 1 . . 1 1 1 . . . . . . 1 . . . . Shots Hit Robots 654 | 10 37 27 46 83 66 63 49 60 88 . . 19 87 12 7 . . Core Hits 342 | 2 21 15 16 37 30 47 22 41 26 8 . 7 62 6 2 . . Critical Kills 4 | . . . 1 1 . 2 . . . . . . . . . . . Critical Parts Destroyed 6 | . . . . 1 . . 1 . . . . 3 1 . . . . Critical Strikes 21 | . 1 4 2 2 . 2 1 . . . . 5 2 2 . . . Burn 4 | . 1 3 . . . . . . . . . . . . . . . Meltdown 1 | . . . 1 . . . . . . . . . . . . . . Destroy 11 | . . . . 2 . 2 1 . . . . 5 1 . . . . Blast 2 | . . 1 1 . . . . . . . . . . . . . . Impale 3 | . . . . . . . . . . . . . 1 2 . . . Melee Attacks 41 | . . . . . . . . . . . . . 23 14 4 . . Impact . | . . . . . . . . . . . . . . . . . . Slashing . | . . . . . . . . . . . . . . . . . . Piercing 41 | . . . . . . . . . . . . . 23 14 4 . . Sneak Attacks 2 | . . . . . . . . . . . . . 2 . . . . Combat Hostiles . | . . . . . . . . . . . . . . . . . . Follow-up Attacks . | . . . . . . . . . . . . . . . . . . Damage Inflicted 22000 | 127 562 399 984 1595 1190 1943 1015 1718 3920 774 . 1342 5283 923 225 . . Guns 7529 | 127 406 167 . 1595 1190 1166 995 164 46 . . . 1563 . 110 . . Cannons 8593 | . . 232 984 . . . . 1554 3874 . . 1342 510 97 . . . Explosions 4072 | . 156 . . . . 777 20 . . 774 . . 2345 . . . . Melee 1778 | . . . . . . . . . . . . . 837 826 115 . . Ramming 28 | . . . . . . . . . . . . . 28 . . . . Kinetic 12507 | . 79 301 786 1595 1190 1166 995 1718 2189 . . 1342 1146 . . . . Thermal 3571 | 127 327 98 198 . . . . . 1731 201 . . 682 97 110 . . Explosive 1417 | . 156 . . . . . 20 . . . . . 1241 . . . . Electromagnetic 2699 | . . . . . . 777 . . . 573 . . 1349 . . . . Impact . | . . . . . . . . . . . . . . . . . . Slashing . | . . . . . . . . . . . . . . . . . . Piercing 1778 | . . . . . . . . . . . . . 837 826 115 . . Highest Corruption 26 | . . . . . 1 2 2 2 2 2 2 6 23 23 26 26 . Average Corruption 5 | . . . . . 1 1 2 1 2 2 2 3 15 23 24 26 . Corruption Purged . | . . . . . . . . . . . . . . . . . . Corruption Blocked . | . . . . . . . . . . . . . . . . . . Effects 163 | . . . . . 1 5 35 8 20 10 . 4 44 21 14 1 . Message Errors 41 | . . . . . . 3 10 2 5 2 . 3 7 6 3 . . Matter Fused 37 | . . . . . . . 9 1 5 2 . 1 9 5 5 . . Heat Flow Errors 22 | . . . . . . 1 8 1 3 . . . 5 2 2 . . Energy Discharges 15 | . . . . . . 1 3 . 3 . . . 4 3 1 . . Parts Rejected 4 | . . . . . . . 1 . . . . . 2 . 1 . . Parts Fused 1 | . . . . . . . . . . 1 . . . . . . . Data Loss (minor) 19 | . . . . . 1 . 2 2 3 2 . . 5 3 1 . . Data Loss (major) 9 | . . . . . . . 2 . 1 3 . . 2 . . 1 . Alerts 1 | . . . . . . . . . . . . . 1 . . . . Misdirections 7 | . . . . . . . . . . . . . 5 1 1 . . Weapon Failures 7 | . . . . . . . . 2 . . . . 4 1 . . . Overload Shots . | . . . . . . . . . . . . . . . . . . Overflow Damage 771 | . . . . . . 12 . 47 186 3 . 135 152 236 . . . Projectiles 447 | . . . . . . . . 47 186 . . 135 73 6 . . . Explosions 59 | . . . . . . 12 . . . 3 . . 44 . . . . Melee 265 | . . . . . . . . . . . . . 35 230 . . . Knockbacks 51 | . . 1 12 . . . . 20 11 . . 7 . . . . . Impact . | . . . . . . . . . . . . . . . . . . Kinetic 46 | . . 1 11 . . . . 18 9 . . 7 . . . . . Secondary 5 | . . . 1 . . . . 2 2 . . . . . . . . Self-Inflicted Damage 137 | . . . . . . . 32 93 . . . . 12 . . . . Shots 3 | . . . . . . . 1 1 . . . . 1 . . . . Rammed 2 | . . . . . . . . . . . . . 2 . . . . Targets Rammed 3 | . . . . . . . . . . . . . 3 . . . . Kicked . | . . . . . . . . . . . . . . . . . . Crushed 1 | . . . . . . . . . . . . . 1 . . . . Highest Temperature 337 | 177 303 222 12 17 1 60 234 . 278 . . 25 264 337 187 . . Average Temperature 62 | 83 76 70 5 7 1 26 91 . 36 . . 11 81 109 97 . . Received Heat Transfer 3089 | . 204 33 138 117 312 243 111 279 270 . . 189 638 501 45 9 . Effects 3 | . . . . . . . . . 3 . . . . . . . . Interference 3 | . . . . . . . . . 3 . . . . . . . . Siege Activations . | . . . . . . . . . . . . . . . . . . Martial Activations . | . . . . . . . . . . . . . . . . . . Shielding Activations . | . . . . . . . . . . . . . . . . . . Robots Disrupted 1 | . . . . . . 1 . . . . . . . . . . . Combat Hostiles 1 | . . . . . . 1 . . . . . . . . . . . Robots Corrupted 8 | . . . . . . . . . . 5 . . 3 . . . . Combat Hostiles 6 | . . . . . . . . . . 5 . . 1 . . . . Parts Fried 12 | . . . . . . . . . . 4 . . 8 . . . . Impact Corruptions . | . . . . . . . . . . . . . . . . . . Robots Melted 1 | . . . 1 . . . . . . . . . . . . . . Combat Hostiles 1 | . . . 1 . . . . . . . . . . . . . . Parts Melted 13 | . 3 2 2 . . 2 . . . . . . 4 . . . . Heat Transferred 4746 | 370 1036 518 259 . . . . . 1406 150 . . 785 74 148 . . Parts Sabotaged . | . . . . . . . . . . . . . . . . . . Parts Stolen . | . . . . . . . . . . . . . . . . . . Parts Stripped . | . . . . . . . . . . . . . . . . . . Power Chain Reactions 3 | . . . . . . . . . . 1 . . 2 . . . . Alert | -11 -10 -10 -10 -8 -7 -7 -7 -5 -5 -5 -5 -5 -4 -4 -4 -4 -3 ------- Run | Yrd Mat Min Sub Mat Fac Sto Rec Fac Ext Cet Arc Hub Fac Upp Upp War Pro Maximum Alert Level 3 | . . . . 1 . 2 1 1 2 2 1 3 3 . . . . Low Security (%) 57 | 100 100 100 . 49 100 17 82 34 44 . 53 10 . . . . . Level 1 22 | . . . . 50 . 18 17 65 47 48 46 25 . . . . . Level 2 17 | . . . . . . 64 . . 8 51 . 30 83 . . . . Level 3 2 | . . . . . . . . . . . . 33 16 . . . . Level 4 . | . . . . . . . . . . . . . . . . . . Level 5 . | . . . . . . . . . . . . . . . . . . High Security . | . . . . . . . . . . . . . . . . . . Max Security . | . . . . . . . . . . . . . . . . . . Peak Influence 1094 | 5 80 105 . 315 168 655 288 335 604 543 214 1094 873 . . . . Initial 505 | . . . . . 132 23 228 250 135 333 214 60 505 . . . . Average 207 | 1 19 31 . 152 100 450 65 228 197 401 196 579 613 . . . . Influence Increases 7881 | 10 289 232 50 471 314 1042 256 696 1380 572 . 1372 902 235 60 . . Destroy 0b10 Robot/C 3580 | . 160 160 40 340 240 520 80 260 680 240 . 440 300 100 20 . . Destroy 0b10 Robot/NC 305 | 10 10 25 . 25 10 45 15 30 35 10 . 20 65 5 . . . Destroy Leader 628 | . 32 30 10 98 50 116 . 34 74 10 . 82 72 10 10 . . Allied During Kill 1449 | . . . . . . 314 1 13 364 255 . 502 . . . . . Successful Hack 130 | . 26 . . 5 14 14 14 7 14 . . 15 21 . . . . Select Force Hacks 250 | . 30 . . . . . 120 . . . . 100 . . . . . Disable Machine 435 | . . . . . . . . 30 60 15 . 75 255 . . . . Destroy Structure 434 | . 16 2 . 3 . 3 26 42 78 42 . 108 114 . . . . Advance Influence 250 | . . . . . . . . 250 . . . . . . . . . Lose Combat Pursuer 420 | . 15 15 . . . 30 . 30 75 . . 30 75 120 30 . . Influence Decreases 7881 | 10 289 232 50 180 553 509 841 418 1062 631 363 514 1101 557 248 323 . Entered New Map 2645 | . . . . . 159 29 357 . 143 263 323 114 527 309 98 323 . Time Decay 4018 | 10 279 232 50 180 374 230 484 318 511 368 40 150 464 198 130 . . Lost Part 290 | . 10 . . . 20 30 . 20 20 . . 10 110 50 20 . . Lost Ally 640 | . . . . . . 220 . 80 100 . . 240 . . . . . Purge Threat 288 | . . . . . . . . . 288 . . . . . . . . Squads Dispatched 33 | . 1 . . 4 3 7 . 2 4 . . 5 7 . . . . Investigation 10 | . 1 . . . 2 . . 1 3 . . 3 . . . . . Extermination 4 | . . . . . 1 . . 1 . . . . 2 . . . . Reinforcement 8 | . . . . 1 . 2 . . 1 . . . 4 . . . . Assault 5 | . . . . . . 3 . . . . . 1 1 . . . . Garrison 6 | . . . . 3 . 2 . . . . . 1 . . . . . Intercept . | . . . . . . . . . . . . . . . . . . Searches Triggered . | . . . . . . . . . . . . . . . . . . Construction Impeded 4 | . . . . . . 1 . . 1 . . . 2 . . . . Haulers Reinforced 1 | . . . . . . 1 . . . . . . . . . . . Active Scanning Responses . | . . . . . . . . . . . . . . . . . . Cargo Convoy Interrupts . | . . . . . . . . . . . . . . . . . . Stealth | -11 -10 -10 -10 -8 -7 -7 -7 -5 -5 -5 -5 -5 -4 -4 -4 -4 -3 --------- Run | Yrd Mat Min Sub Mat Fac Sto Rec Fac Ext Cet Arc Hub Fac Upp Upp War Pro Distress Signals 19 | . 1 . . 2 . 4 1 3 3 2 . 1 1 . . 1 . Communications Jammed . | . . . . . . . . . . . . . . . . . . Distress Signals . | . . . . . . . . . . . . . . . . . . Times Spotted 285 | . 14 11 10 27 14 35 9 22 39 12 . 30 36 13 3 9 1 Peak Tracking Total 16 | . 3 3 4 5 4 16 2 7 6 5 . 9 9 6 3 8 . Tactical Retreats 22 | . 1 1 . . . 2 . 2 3 . . 2 3 6 2 . . Traps | -11 -10 -10 -10 -8 -7 -7 -7 -5 -5 -5 -5 -5 -4 -4 -4 -4 -3 ------- Run | Yrd Mat Min Sub Mat Fac Sto Rec Fac Ext Cet Arc Hub Fac Upp Upp War Pro Traps Triggered 6 | . . . . . 2 1 . 1 1 . . . 1 . . . . Indirectly . | . . . . . . . . . . . . . . . . . . Trap Hack Attempts . | . . . . . . . . . . . . . . . . . . Triggered . | . . . . . . . . . . . . . . . . . . Disarmed . | . . . . . . . . . . . . . . . . . . Reprogrammed . | . . . . . . . . . . . . . . . . . . Reused . | . . . . . . . . . . . . . . . . . . Traps Extracted . | . . . . . . . . . . . . . . . . . . Installed . | . . . . . . . . . . . . . . . . . . Triggered . | . . . . . . . . . . . . . . . . . . Machines | -11 -10 -10 -10 -8 -7 -7 -7 -5 -5 -5 -5 -5 -4 -4 -4 -4 -3 ---------- Run | Yrd Mat Min Sub Mat Fac Sto Rec Fac Ext Cet Arc Hub Fac Upp Upp War Pro Machines Disabled 33 | . . . 1 . . . . 2 6 1 . 5 17 . . 1 . Max in Single Turn 4 | . . . 1 . . . . 1 1 1 . 1 4 . . 1 . Garrison Access 1 | . . . . . . 1 . . . . . . . . . . . Network Hub 3 | . . . . . . . . . . . . 3 . . . . . Machines Repaired . | . . . . . . . . . . . . . . . . . . Machines Dismantled 5 | . . . . . . . . 1 2 1 . . . . . 1 . Machines Sabotaged 2 | . . . . . . . . . . . . 2 . . . . . Overloaded Fab Kills . | . . . . . . . . . . . . . . . . . . Hacking | -11 -10 -10 -10 -8 -7 -7 -7 -5 -5 -5 -5 -5 -4 -4 -4 -4 -3 --------- Run | Yrd Mat Min Sub Mat Fac Sto Rec Fac Ext Cet Arc Hub Fac Upp Upp War Pro Machines Accessed 53 | . 7 . 1 1 6 3 12 2 10 . . 4 4 . . 3 . Terminals 34 | . 6 . . 1 2 2 6 2 9 . . 4 2 . . . . Fabricators 2 | . . . . . 1 . . . . . . . 1 . . . . Repair Stations . | . . . . . . . . . . . . . . . . . . Recycling Units 9 | . 1 . . . 1 . 5 . 1 . . . 1 . . . . Scanalyzers 1 | . . . . . 1 . . . . . . . . . . . . Garrison Access 2 | . . . . . 1 1 . . . . . . . . . . . Total Hacks 129 | . 16 . 1 3 10 5 31 5 22 . . 9 21 . . 6 . Successful 54 | . 9 . 1 2 2 2 14 1 7 . . 5 5 . . 6 . Failed 75 | . 7 . . 1 8 3 17 4 15 . . 4 16 . . . . Catastrophic 18 | . . . . 1 2 2 4 . 5 . . . 4 . . . . Database Lockouts . | . . . . . . . . . . . . . . . . . . Manual 69 | . 15 . . 3 3 5 21 1 2 1 . 10 8 . . . . Terminals 85 | . 14 . . 3 3 4 15 5 19 . . 9 13 . . . . Fabricators 6 | . . . . . 1 . . . . . . . 5 . . . . Repair Stations . | . . . . . . . . . . . . . . . . . . Recycling Units 25 | . 2 . . . 3 . 14 . 3 . . . 3 . . . . Scanalyzers 1 | . . . . . 1 . . . . . . . . . . . . Garrison Access 3 | . . . . . 2 1 . . . . . . . . . . . Terminal Hacks 20 | . 1 . 1 . . . 3 1 5 . . 2 1 . . 6 . Record 1 | . . . . . . . . . . . . . 1 . . . . Prototype ID Bank 5 | . . . . . . . . . 1 . . . . . . 4 . Open Door 4 | . . . . . . . . . 2 . . . . . . 2 . Level Access Points 1 | . . . . . . . . . . . . 1 . . . . . Branch Access Points 1 | . . . . . . . . 1 . . . . . . . . . Terminal Index 1 | . 1 . . . . . . . . . . . . . . . . Unreport Threat 2 | . . . . . . . . . 2 . . . . . . . . Zone Layout 2 | . . . . . . . 1 . . . . 1 . . . . . Proto ID Catalog 1 | . . . 1 . . . . . . . . . . . . . . Release Object 2 | . . . . . . . 2 . . . . . . . . . . Fabricator Hacks 1 | . . . . . . . . . . . . . 1 . . . . Build 1 | . . . . . . . . . . . . . 1 . . . . Repair Station Hacks . | . . . . . . . . . . . . . . . . . . Recycling Unit Hacks 7 | . 1 . . . . . 4 . 1 . . . 1 . . . . Retrieve Components 7 | . 1 . . . . . 4 . 1 . . . 1 . . . . Scanalyzer . | . . . . . . . . . . . . . . . . . . Garrison Access Hacks 1 | . . . . . . 1 . . . . . . . . . . . Seal Access 1 | . . . . . . 1 . . . . . . . . . . . Unauthorized Hacks 25 | . 7 . . 2 2 1 7 . 1 . . 3 2 . . . . Terminals 19 | . 6 . . 2 1 1 3 . 1 . . 3 2 . . . . Botnet 4 | . 1 . . 1 1 . . . . . . . 1 . . . . Skim 12 | . 5 . . 1 . 1 3 . 1 . . . 1 . . . . Sabotage 3 | . . . . . . . . . . . . 3 . . . . . Fabricators 1 | . . . . . 1 . . . . . . . . . . . . Liberate 1 | . . . . . 1 . . . . . . . . . . . . Repair Stations . | . . . . . . . . . . . . . . . . . . Recycling Units 5 | . 1 . . . . . 4 . . . . . . . . . . Tunnel 5 | . 1 . . . . . 4 . . . . . . . . . . Scanalyzers . | . . . . . . . . . . . . . . . . . . Garrison Access . | . . . . . . . . . . . . . . . . . . Data Cores Recovered 3 | . . . . . 1 . . . 2 . . . . . . . . Used 1 | . . . . . . . . . 1 . . . . . . . . Hacking Detections 37 | . 5 . . 1 5 2 9 2 8 1 . 2 2 . . . . Full Trace Events 6 | . . . . . 1 . 1 1 3 . . . . . . . . Feedback Events . | . . . . . . . . . . . . . . . . . . Feedback Blocked . | . . . . . . . . . . . . . . . . . . Robot Schematics Acquired . | . . . . . . . . . . . . . . . . . . Robots Built . | . . . . . . . . . . . . . . . . . . Authchips . | . . . . . . . . . . . . . . . . . . Time . | . . . . . . . . . . . . . . . . . . Total Robot Build Rating . | . . . . . . . . . . . . . . . . . . Part Schematics Acquired . | . . . . . . . . . . . . . . . . . . Parts Built . | . . . . . . . . . . . . . . . . . . Authchips . | . . . . . . . . . . . . . . . . . . Time 93 | . . . . . . . . . . . . . 93 . . . . Total Part Build Rating . | . . . . . . . . . . . . . . . . . . Part Studies Acquired . | . . . . . . . . . . . . . . . . . . Parts Repaired . | . . . . . . . . . . . . . . . . . . Time . | . . . . . . . . . . . . . . . . . . Parts Recycled . | . . . . . . . . . . . . . . . . . . Recycled Matter . | . . . . . . . . . . . . . . . . . . Retrieved Matter . | . . . . . . . . . . . . . . . . . . Retrieved Components 22 | . 5 . . . . . 10 . 4 . . . 3 . . . . Parts Scanalyzed . | . . . . . . . . . . . . . . . . . . Part Schematics Acquired . | . . . . . . . . . . . . . . . . . . Parts Damaged . | . . . . . . . . . . . . . . . . . . Bothacking | -11 -10 -10 -10 -8 -7 -7 -7 -5 -5 -5 -5 -5 -4 -4 -4 -4 -3 ------------ Run | Yrd Mat Min Sub Mat Fac Sto Rec Fac Ext Cet Arc Hub Fac Upp Upp War Pro Used RIF Installer . | . . . . . . . . . . . . . . . . . . Robots Hacked 1 | . . . . . . . . 1 . . . . . . . . . Non-combat . | . . . . . . . . . . . . . . . . . . Combat 1 | . . . . . . . . 1 . . . . . . . . . Robot Hacks Applied 1 | . . . . . . . . 1 . . . . . . . . . parse_system 1 | . . . . . . . . 1 . . . . . . . . . Relay Couplers Released . | . . . . . . . . . . . . . . . . . . Fabnet Peak Effective % . | . . . . . . . . . . . . . . . . . . Robots Rewired 19 | . . . . . . . 7 . 12 . . . . . . . . Allies Hacked . | . . . . . . . . . . . . . . . . . . Hacks Repelled . | . . . . . . . . . . . . . . . . . . Allies | -11 -10 -10 -10 -8 -7 -7 -7 -5 -5 -5 -5 -5 -4 -4 -4 -4 -3 -------- Run | Yrd Mat Min Sub Mat Fac Sto Rec Fac Ext Cet Arc Hub Fac Upp Upp War Pro Total Allies 45 | . . . . . 2 12 7 . 19 5 . . . . . . . Largest Group 15 | . . . . . 2 12 7 7 11 15 15 14 . . . . . Highest-Rated Group 862 | . . . . . 74 235 157 157 413 862 862 703 . . . . . Highest-Rated Ally 159 | . . . . . 37 31 40 40 159 159 159 96 . . . . . Total Orders 1 | . . . . . . . . 1 . . . . . . . . . STAY 1 | . . . . . . . . 1 . . . . . . . . . Ally Attacks 419 | . . . . . . 153 6 16 120 33 . 91 . . . . . Total Damage 9469 | . . . . . . 2066 146 248 2797 1236 . 2976 . . . . . Kills 71 | . . . . . . 16 1 5 25 7 . 17 . . . . . Allies Corrupted 8 | . . . . . . 1 . . . . . 7 . . . . . Allies Melted . | . . . . . . . . . . . . . . . . . . Intel | -11 -10 -10 -10 -8 -7 -7 -7 -5 -5 -5 -5 -5 -4 -4 -4 -4 -3 ------- Run | Yrd Mat Min Sub Mat Fac Sto Rec Fac Ext Cet Arc Hub Fac Upp Upp War Pro Active Infowar (turns) 3116 | 39 254 . 434 480 877 442 4 . . . . . . . . 259 327 Optics 586 | . . . . . . . . . . . . . . . . 259 327 Structural 2237 | . . . 434 480 877 442 4 . . . . . . . . . . Seismic 293 | 39 254 . . . . . . . . . . . . . . . . Robot Analysis Total . | . . . . . . . . . . . . . . . . . . Derelict Logs Recovered 2 | . . 1 1 . . . . . . . . . . . . . . Drone Launches . | . . . . . . . . . . . . . . . . . . Drone Recoveries . | . . . . . . . . . . . . . . . . . . Exploration | -11 -10 -10 -10 -8 -7 -7 -7 -5 -5 -5 -5 -5 -4 -4 -4 -4 -3 ------------- Run | Yrd Mat Min Sub Mat Fac Sto Rec Fac Ext Cet Arc Hub Fac Upp Upp War Pro Turns Passed 14354 | 118 1011 706 867 483 877 480 2848 703 1433 850 86 305 1170 417 266 1407 327 Spaces Moved 7592 | 56 423 355 606 251 543 255 1383 429 585 184 34 211 671 345 197 948 116 Core 19 | 19 . . . . . . . . . . . . . . . . . Treads 1332 | 37 423 355 82 . . . . . . . . . 319 . . . 116 Legs 4274 | . . . . 237 543 255 919 82 486 184 34 211 221 107 197 798 . Wheels 1286 | . . . 524 14 . . 401 347 . . . . . . . . . Hover 514 | . . . . . . . . . . . . . 131 238 . 145 . Flight 167 | . . . . . . . 63 . 99 . . . . . . 5 . Fastest Speed 50 | 50 160 160 105 106 126 122 84 55 55 109 109 109 92 104 104 104 132 Average Speed 124 | 122 160 160 115 124 126 133 127 102 114 169 138 109 122 104 104 118 132 Slowest Speed 260 | 160 160 160 160 126 200 197 260 175 200 200 200 200 167 104 104 195 132 Overloaded Moves . | . . . . . . . . . . . . . . . . . . Propulsion Burnouts . | . . . . . . . . . . . . . . . . . . Robots Hopped . | . . . . . . . . . . . . . . . . . . Potential Cave-ins . | . . . . . . . . . . . . . . . . . . Cave-ins Triggered . | . . . . . . . . . . . . . . . . . . Exploration Rate (%) 45 | 4 56 67 33 26 14 58 98 7 72 65 59 33 21 59 40 93 21 Regions Visited 17 Branch Regions 12 Pre-discovered Areas 8 | . 2 1 1 . . . 4 . . . . . . . . . . Known Exits Taken 8 | . . . . 1 1 1 1 1 . . . 1 1 1 . . . Unknown Exits Taken 9 | 1 1 1 1 . . . . . 1 1 1 . . . 1 1 . Scrap Searched 5 | . . 1 . . . . . . . . . . . 2 1 . 1 Spaces Dug 26 | . 6 . . . . . 19 1 . . . . . . . . . Terrain Destroyed 218 | . 16 2 2 . . 1 38 17 29 16 . 35 61 1 . . . Melee . | . . . . . . . . . . . . . . . . . . Projectile 100 | . . 2 2 . . 1 . 5 29 . . 35 25 1 . . . AOE 118 | . 16 . . . . . 38 12 . 16 . . 36 . . . . Terrain Rammed . | . . . . . . . . . . . . . . . . . . Walls Destroyed . | . . . . . . . . . . . . . . . . . . Machines Disabled . | . . . . . . . . . . . . . . . . . . Actions | -11 -10 -10 -10 -8 -7 -7 -7 -5 -5 -5 -5 -5 -4 -4 -4 -4 -3 --------- Run | Yrd Mat Min Sub Mat Fac Sto Rec Fac Ext Cet Arc Hub Fac Upp Upp War Pro Total 11663 | 91 702 451 688 375 696 338 2439 624 1231 705 74 256 864 370 243 1225 291 Wait 2970 | 11 225 69 14 25 101 6 943 83 478 484 39 2 38 5 34 239 174 Move 7575 | 55 422 354 605 250 542 254 1382 428 584 183 33 210 670 344 196 947 116 Hop . | . . . . . . . . . . . . . . . . . . Pick Up 137 | 11 12 1 8 17 8 13 10 14 6 7 . 1 20 . . 9 . Fast Attach 17 | . 1 . 1 3 2 1 2 2 4 . . 1 . . . . . Attach 71 | 7 2 2 3 9 2 6 1 3 4 6 . . 14 1 1 10 . Detach 24 | . 1 . . . . 2 . 5 3 5 1 1 2 . . 3 1 Swap 24 | . 3 . 7 3 1 7 1 . 1 . . . . . . 1 . Drop 121 | . 5 2 5 17 4 9 25 8 10 6 1 3 15 2 1 8 . Fire 584 | 7 31 23 45 51 36 40 25 72 120 6 . 38 79 4 7 . . Melee 41 | . . . . . . . . . . . . . 23 14 4 . . Ram . | . . . . . . . . . . . . . . . . . . Kick . | . . . . . . . . . . . . . . . . . . Crush 3 | . . . . . . . . . . . . . 3 . . . . Escape Stasis 5 | . . . . . . . . . 5 . . . . . . . . Rewire 50 | . . . . . . . 50 . . . . . . . . . . Trap . | . . . . . . . . . . . . . . . . . . Miscellaneous 41 | . . . . . . . . 9 16 8 . . . . . 8 . Route ------- -11/Scrapyard -10/Materials (discovered 4 exits: *Mat x3 / [*Min]) -10/Mines (discovered 3 exits: *Mat x2 / *Sub) -10/Subcaves (discovered 2 exits: *Mat / Rec) -8/Materials (discovered 2 exits: *Fac x2) -7/Factory (discovered 4 exits: [*Fac x2] / *Sto / *Low) -7/Storage -7/Recycling -5/Factory (discovered 4 exits: Upp x2 / *Ext x2) -5/Extension (discovered 2 exits: *Fac / *Cet) -5/Cetus (discovered 2 exits: *Fac / [*Arc]) -5/Archives -5/Hub_04(d) (discovered 4 exits: *Fac x4) -4/Factory (discovered 2 exits: *Res / *Upp) -4/Upper Caves -4/Upper Caves -4/Warlord -3/Proximity Caves History --------- Turn | Location | Event 4 | -11/Scrapyard | Discovered new exit (range 16) 119 | -11/Scrapyard | Entered Materials 240 | -10/Materials | Discovered new exit (range 9) 306 | -10/Materials | Build established: Mutant 524 | -10/Materials | Discovered new exit (range 16) 709 | -10/Materials | Discovered new exit (range 16) 807 | -10/Materials | Learned Storage emergency access door positions 886 | -10/Materials | Learned location of Mines (-8) 942 | -10/Materials | Learned Materials stockpile data 974 | -10/Materials | Identified exit to Materials 1130 | -10/Materials | Entered Mines 1245 | -10/Mines | Learned 8 Materials zone layouts 1263 | -10/Mines | Learned location of Storage (-7) 1293 | -10/Mines | Found a Scrap Suit stashed away for nefarious purposes 1738 | -10/Mines | Discovered new exit (range 6) 1836 | -10/Mines | Entered Subcaves 1837 | -10/Subcaves | Identified exit to Recycling 1848 | -10/Subcaves | Learned location of Zion (-6) 1848 | -10/Subcaves | Met a Zionite searching for "candidates" 1893 | -10/Subcaves | A swath of the cavern ceiling suddenly collapsed 2084 | -10/Subcaves | Visited 4L-MR0's lab 2095 | -10/Subcaves | Found Flightbrick 2428 | -10/Subcaves | Shifting Twisted Machinery released Hvy. Battle Rifle 2467 | -10/Subcaves | Core integrity fell below 50% 2532 | -10/Subcaves | Learned location of 1 exit from Materials 2684 | -10/Subcaves | Discovered new exit (range 7) 2703 | -10/Subcaves | Entered Materials 2703 | -8/Materials | Evolved 4 slots: Propulsion x1, Utility x2, Weapon x1 2704 | -8/Materials | Identified exit to Factory 2913 | -8/Materials | Garrison activated, responded to threat 2966 | -8/Materials | Destroyed 7 combat bots 3005 | -8/Materials | Build established: Tank 3186 | -8/Materials | Entered Factory 3186 | -7/Factory | Evolved 2 slots: Propulsion x1, Utility x1 3392 | -7/Factory | Discovered new exit (range 4) 3749 | -7/Factory | Discovered new exit (range 4) 3793 | -7/Factory | Discovered new exit (range 13) 4030 | -7/Factory | Discovered new exit (range 7) 4038 | -7/Factory | Identified exit to Lower Caves 4062 | -7/Factory | Identified exit to Storage 4063 | -7/Factory | Entered Storage 4085 | -7/Storage | Assisted by bots powering up and referring to "LRC-V3" 4153 | -7/Storage | Met a pair of Derelict thieves 4245 | -7/Storage | Garrison activated, responded to threat 4335 | -7/Storage | Lost 11 allies 4463 | -7/Storage | First assault squad dispatched 4538 | -7/Storage | Used back door to open Recycling access 4538 | -7/Storage | Discovered exit to Recycling (range 5) 4543 | -7/Storage | Entered Recycling 5005 | -7/Recycling | Discovered new exit (range 15) 5231 | -7/Recycling | Build established: Commander-Tank 5482 | -7/Recycling | Entered Scraplab 5490 | -7/Recycling | Found Prototype Device 5490 | -7/Recycling | Identified Scrap Engine 5795 | -7/Recycling | Build established: Commander-Mutant 6232 | -7/Recycling | Build established: Commander-Construct 7325 | -7/Recycling | Identified exit to Factory 7391 | -7/Recycling | Entered Factory 7391 | -5/Factory | Accompanied by 7 allies 7391 | -5/Factory | Evolved 4 slots: Power x1, Propulsion x1, Utility x1, Weapon x1 7418 | -5/Factory | Identified exit to Upper Caves 7418 | -5/Factory | Identified exit to Extension 7787 | -5/Factory | Lost 3 allies 8094 | -5/Factory | Entered Extension 8218 | -5/Extension | Rescued a captive Derelict 8218 | -5/Extension | Rescued a captive Derelict 8605 | -5/Extension | Lost 3 allies 8674 | -5/Extension | Spotted B-75 Beast 8735 | -5/Extension | Lost 3 allies 8740 | -5/Extension | Destroyed B-75 Beast 8870 | -5/Extension | Build established: Construct 8926 | -5/Extension | Spotted B-75 Beast 8942 | -5/Extension | Destroyed B-75 Beast 9104 | -5/Extension | Rescued a captive Derelict 9187 | -5/Extension | Rescued A7 9243 | -5/Extension | Rescued a captive Derelict 9244 | -5/Extension | Rescued a captive Derelict 9374 | -5/Extension | Rescued a captive Derelict 9428 | -5/Extension | Discovered new exit (range 10) 9429 | -5/Extension | Discovered new exit (range 6) 9527 | -5/Extension | Entered Cetus 9527 | -5/Cetus | Accompanied by 10 allies (A7) 9532 | -5/Cetus | Acquired a Cetus Manufacturing Module code from A7 9554 | -5/Cetus | Spotted Cetus Guard 9555 | -5/Cetus | Spotted Cetus Guard 9561 | -5/Cetus | Destroyed Cetus Guard 9561 | -5/Cetus | Spotted Cetus Guard 9562 | -5/Cetus | Destroyed Cetus Guard 9563 | -5/Cetus | Allies destroyed Cetus Guard 9566 | -5/Cetus | Spotted Cetus Guard 9575 | -5/Cetus | Allies destroyed Cetus Guard 9607 | -5/Cetus | Build established: Commander-Construct 9952 | -5/Cetus | Started Cetus Manufacturing Module 9977 | -5/Cetus | Manufactured an Enhanced Grunt 9985 | -5/Cetus | Escorted A7 to Cetus Mainframe 10002 | -5/Cetus | Manufactured an Enhanced Grunt 10008 | -5/Cetus | Discovered new exit (range 15) 10027 | -5/Cetus | Manufactured an Enhanced Grunt 10039 | -5/Cetus | Spotted Cetus Guard 10040 | -5/Cetus | Spotted Cetus Guard 10044 | -5/Cetus | Allies destroyed Cetus Guard 10047 | -5/Cetus | Destroyed Cetus Guard 10047 | -5/Cetus | Spotted Cetus Guard 10048 | -5/Cetus | Spotted Cetus Guard 10050 | -5/Cetus | Destroyed Cetus Guard 10052 | -5/Cetus | Manufactured an Enhanced Grunt 10055 | -5/Cetus | Core integrity fell below 50% 10056 | -5/Cetus | Destroyed Cetus Guard 10064 | -5/Cetus | Discovered new exit (range 15) 10074 | -5/Cetus | Met Revision 17 10077 | -5/Cetus | Manufactured an Enhanced Grunt 10277 | -5/Cetus | Security sweep announced 10377 | -5/Cetus | Entered Archives 10377 | -5/Archives | Accompanied by 15 allies (A7) 10382 | -5/Archives | Received a hacking code to weaken MAIN.C 10399 | -5/Archives | Met Zhirov 10405 | -5/Archives | Reinforcements dispatched to Archives 10408 | -5/Archives | Discovered new exit (range 15) 10450 | -5/Archives | Reinforcements dispatched to Archives 10463 | -5/Archives | Entered Hub_04(d) 10463 | -5/Hub_04(d) | Accompanied by 14 allies 10504 | -5/Hub_04(d) | Network Hub disabled 10535 | -5/Hub_04(d) | Lost 3 allies 10578 | -5/Hub_04(d) | Identified exit to Factory 10676 | -5/Hub_04(d) | Network Hub disabled 10676 | -5/Hub_04(d) | Network Hub disabled 10707 | -5/Hub_04(d) | Spotted Lightning 10707 | -5/Hub_04(d) | Spotted Lightning 10708 | -5/Hub_04(d) | Spotted Lightning 10719 | -5/Hub_04(d) | Garrison activated, responded to threat 10762 | -5/Hub_04(d) | Spotted Lightning 10763 | -5/Hub_04(d) | First assault squad dispatched 10768 | -5/Hub_04(d) | Entered Factory 10768 | -4/Factory | Evolved 2 slots: Utility x2 10774 | -4/Factory | Lost 11 allies 11039 | -4/Factory | Build established: Construct 11231 | -4/Factory | System corruption reached 10% 11518 | -4/Factory | First assault squad dispatched 11701 | -4/Factory | Found Quantum Capacitor 11840 | -4/Factory | Build established: Mutant 11850 | -4/Factory | Lost 3 parts (3w) 11895 | -4/Factory | Discovered new exit (range 16) 11909 | -4/Factory | Identified exit to Research 11914 | -4/Factory | Core integrity fell below 50% 11920 | -4/Factory | Discovered new exit (range 15) 11937 | -4/Factory | Identified exit to Upper Caves 11938 | -4/Factory | Entered Upper Caves 11940 | -4/Upper Caves | Attracted the attention of an 0b10 checkpoint 12017 | -4/Upper Caves | Spotted B-86 Titan 12222 | -4/Upper Caves | Core integrity fell below 20% 12265 | -4/Upper Caves | Lost 3 parts (1p1n1u) 12344 | -4/Upper Caves | Discovered new exit (range 13) 12354 | -4/Upper Caves | Identified exit to Upper Caves 12355 | -4/Upper Caves | Entered another Upper Caves area 12397 | -4/Upper Caves | Attracted the attention of an 0b10 checkpoint 12412 | -4/Upper Caves | Spotted B-86 Titan 12610 | -4/Upper Caves | Discovered new exit (range 10) 12621 | -4/Upper Caves | Entered Warlord 12659 | -4/Warlord | System corruption cleaned by Quarantine Array 13195 | -4/Warlord | Found Prototype Processor 13204 | -4/Warlord | Found Prototype Device 13207 | -4/Warlord | Found Prototype Processor 13213 | -4/Warlord | Found Prototype Hackware 13214 | -4/Warlord | Identified Thermal Barrier 13432 | -4/Warlord | Warlord's base attacked by MAIN.C 13519 | -4/Warlord | Found Prototype Energy Gun 13523 | -4/Warlord | Found Prototype Energy Gun 13588 | -4/Warlord | Identified Exp. Targeting Computer 13620 | -4/Warlord | Met Warlord 13628 | -4/Warlord | Build established: Construct 13782 | -4/Warlord | Warlord forces counterattacked 13872 | -4/Warlord | Spotted Executioner 13915 | -4/Warlord | Lost 12 allies 13998 | -4/Warlord | Opened side exit 14018 | -4/Warlord | Discovered new exit (range 10) 14028 | -4/Warlord | Entered Proximity Caves 14355 | -3/Proximity Caves | Destroyed by S-43 Plague with Heavy Machine Gun Last Messages --------------- Max Damage +19, Critical +11/Detonate, Shot Heat +12, Disruption +2/Wide, +Penetration Renamed Hyp. Zero Gamma Construct/G. 14091_ Scrap Engine modifies Flying CIT-Antigrav Exoskeleton: Max Integrity -51, Support +7 Renamed FC-Antigrav Exoskeleton. 14143_ Scrap Engine modifies FC-Antigrav Exoskeleton: Heat +1, Max Integrity +47 Renamed Hovering Antigrav-FC Exoskeleton. 14202_ Scrap Engine modifies Hovering Antigrav-FC Exoskeleton: Max Integrity +369, Coverage +36, Penalty -32 Renamed Treaded FC Exoskeleton. 14334_ Searching scrap... 14334_ Found Biometal Medium Treads. 14334_ Found 38 Matter. 14338_ Arm. Scrap Engine consumes Biometal Medium Treads. Map ----- +----------------------------------------------------+ | ?????????????????????????????????????????????????? | | ?????????????????????????????????????????????????? | | ?????????????????????????????????????????????????? | | ?????????????????????????????????????????????????? | | ?????????????????????????????????????????????????? | | ?????????????????????????????????????????????????? | | ?????????????????????????????????????????????????? | | ?????????????????????????????????????????????????? | | ?????????????????????????????????????????????????? | | ##???????????????????????????????????????????????? | | #########???????????????????????????????????????? | | ##??????????????????????????????????????? | | ##?????????????????????????????????????? | | #?# #?????????????????????????????????????? | | #??# #######???????????????????????????????? | | #?## ## ####????????????????????????????? | | ### % #????????????????????????????? | | ## ## #????????????????????????????? | | ### ### #????????????????????????????? | | ### ##?# #????????????????????????????? | | #####??# #####????????????????????????? | | ### #??????# #????????????????????????? | | ##?# #??????#### #????????????????????????? | | ##### #????????# ##???????????????????????? | | #?# ???????# ##??????????????????????? | | ### #?????# @#??????????????????????? | | ### ##?????## #?????????????????????? | | #??# ###???????# #????????????????????? | | #######?????????# #???????????????????? | | ##??????????? #???????????????????? | | #??????????# #???????????????????? | | #?????????? #???????????????????? | | ### ####?????? #???????????????????? | | ###?# # ## #???????????????????? | | ####???# ### #???????????????????? | | #??????# # #?# ##???????????????????? | | #??????# ## ## ## ##????????????????????? | | #?????# #?###??s #####?????????????????????? | | #???? #????? ?? ??????????????????????? | | #??? ????# ?????? ???????????????????? | | ##?? ????## ??????????????????????????????? | | ##??## ?????## ??????????????????????????????? | | ?????# ?????##??????????????????????????????? | | ?????# ?????????????????????????????????????? | | ?????### ?????????????????????????????????????? | | ???????# ????????????????????????????????????? | | ???????# ####????????????????????????????????????? | | ???????##????????????????????????????????????????? | | ?????????????????????????????????????????????????? | | ?????????????????????????????????????????????????? | +----------------------------------------------------+ Best States ------------- Heat Dissipation 88 Energy Generation 39 Energy Capacity 724 Matter Stores 300 Matter Capacity 300 Sight Range 22 Terrain Scan Density 10 Armor Coverage 225 Resistance: KI 25 Resistance: TH 50 Phase Shifting 5 Evasion (%) 64 Targeting Accuracy 12 Launcher Accuracy 60 Recoil Reduction 5 Authchip Count 1 Item Schematics ----------------- None Robot Schematics ------------------ None Fabricated ------------ Nothing Repaired ---------- Nothing Studied --------- None Alien Tech Used ----------------- None Achievements -------------- None Challenges ------------ None Game ------ Seed VampiricWeightManipulator Manual? 0 Play Time 01:45:03 Cumulative 533.9 hours Start 2025.11.21 @ 00:09:16 End 2025.11.21 @ 11:19:23 Sessions 4 Manual Loads 0 Difficulty Rogue Special Mode None Game No. 707 Rogue 707 Adventurer 0 Explorer 0 Win Type - Total 19 Types 8/1/2/2/2/0/2/2/0/0 Lore% 92 Gallery% 86 Achievement% 69 Wizard Run 0 Options --------- Layout 2 ASCII 0 Keyboard 0 Movement Mouse Keybinds 0 Fullscreen 1 Font 24/Terminus Map View 50x49 Zoom Use 0% Tactical HUD 1 Map Filters NONE Filters NONE Steam 1 RUN: 02e6d683-6ab7-4187-8c58-117512722ccf